Cogmind - Beta 10.2 @@@ ROGUE MODE // 2020.11.02 @ 10:55:28 Player: Impermanent Result: Destroyed by D-53 Grenadier with Mini Grenade Launcher Performance ------------- Evolutions (0) 0 Regions Visited (4) 800 Robots Destroyed (13) 65 Value Destroyed (241) 241 Prototype IDs (0) 0 Alien Tech Used (0) 0 Bonus (-10) -10 TOTAL SCORE: 1096 Bonus ------- Friendly Fire -10 Cogmind --------- Core Integrity 0/250 Matter 237/300 Energy 98/100 System Corruption 0% Temperature Cool (1) Movement Walking (120) Location -9/Mines Parts ------- > --- POWER (1) -------- (None) > --- PROPULSION (2) --- Carbon-fiber Leg > --- UTILITY (2) ------ Heat Sink Small Storage Unit > --- WEAPON (2) ------- (None) > --- INVENTORY (6) ---- Ion Engine Ion Engine Aluminum Leg Assault Rifle Light Cannon Light Cannon Peak State ------------ > --- POWER ------------ Light Nuclear Core > --- PROPULSION ------- Aluminum Leg Carbon-fiber Leg > --- UTILITY ---------- Heat Sink Small Storage Unit > --- WEAPON ----------- Grenade Launcher Rocket Launcher > --- INVENTORY -------- Ion Engine Ion Engine Aluminum Leg Assault Rifle Light Cannon Light Cannon [Rating: 12] Favorites ----------- Power Light Nuclear Core Engine Ion Engine Power Core Light Nuclear Core Propulsion Aluminum Leg Leg Aluminum Leg Utility Small Storage Unit Device Heat Sink Storage Small Storage Unit Weapon Grenade Launcher Energy Gun EM Pulse Gun Ballistic Cannon Light Cannon Launcher Grenade Launcher Build | -11 -10 -10 -10 -9 ------- Run | Scr Mat Min Exi Min Slots Evolved . | . . . . . Power . | . . . . . Propulsion . | . . . . . Utility . | . . . . . Weapon . | . . . . . Parts Attached 18 | 6 9 2 1 . Power 3 | 1 1 . 1 . Engine 1 | 1 . . . . Core 2 | . 1 . 1 . Reactor . | . . . . . Propulsion 8 | 2 5 1 . . Treads . | . . . . . Leg 8 | 2 5 1 . . Wheel . | . . . . . Hover . | . . . . . Flight . | . . . . . Utility 2 | 1 1 . . . Device 1 | . 1 . . . Storage 1 | 1 . . . . Processor . | . . . . . Hackware . | . . . . . Protection . | . . . . . Artifact . | . . . . . Weapon 5 | 2 2 1 . . Energy Gun 2 | 2 . . . . Energy Cannon . | . . . . . Ballistic Gun . | . . . . . Ballistic Cannon 1 | . 1 . . . Launcher 2 | . 1 1 . . Special Weapon . | . . . . . Impact Weapon . | . . . . . Slashing Weapon . | . . . . . Piercing Weapon . | . . . . . Special Melee Weapon . | . . . . . Unidentified Prototypes . | . . . . . Parts Lost 4 | . . . . 4 Power 1 | . . . . 1 Propulsion 1 | . . . . 1 Utility . | . . . . . Weapon 2 | . . . . 2 Highest Loss Streak 4 | . . . . 4 Average Slot Usage (%) 98 | . 96 100 100 89 Core 12 | . 10 14 14 11 Leg 27 | . 28 28 28 25 Device 13 | . 11 14 14 14 Storage 14 | . 14 14 14 14 Energy Gun 4 | . 15 . . . Ballistic Cannon 2 | . 6 7 . . Launcher 20 | . 6 20 28 22 Naked Turns . | . . . . . Heaviest Build 17 | 13 16 17 17 17 Greatest Support 25 | 20 20 25 25 25 Greatest Overweight (x) 2 | 2 1 . . . Average Overweight (x) . | . . . . . Largest Inventory Capacity 6 | 6 6 6 6 6 Average Capacity 5 | 5 6 6 6 6 Most Carried 6 | 1 6 6 6 6 Average Carried 5 | . 4 6 6 6 Final Capacity 6 | 6 6 6 6 6 Final Carried 6 | 1 6 6 6 6 Class Distribution -------------------- 84% | Scavenger-Mutant 15% | Mutant Dominant Class ---------------- Scavenger-Mutant | -10/Materials Scavenger-Mutant | -10/Mines Scavenger-Mutant | -10/Exiles Scavenger-Mutant | -9/Mines Resources | -11 -10 -10 -10 -9 ----------- Run | Scr Mat Min Exi Min Matter Collected 434 | 224 144 66 . . Remotely . | . . . . . Salvage Created 251 | . 231 10 . 10 Parts 21 | . 17 4 . . Haulers Intercepted . | . . . . . Recyclers Shooed . | . . . . . Parts Field Recycled . | . . . . . Retrieved Matter . | . . . . . Parts Self-Destructed . | . . . . . Prevented . | . . . . . Kills | -11 -10 -10 -10 -9 ------- Run | Scr Mat Min Exi Min Combat Hostiles Destroyed 10 | . 5 3 . 2 Guns 3 | . 3 . . . AOE 7 | . 2 3 . 2 Classes Destroyed 5 | . 3 1 . 1 Worker 2 | . 2 . . . Watcher 1 | . 1 . . . Swarmer 3 | . . 3 . . Grunt 5 | . 5 . . . Assembled 2 | . . . . 2 Best Kill Streak 4 | . 4 3 . 2 Combat Bots Only 3 | . 2 3 . 2 Max Kills in Single Turn 4 | . 4 2 . 2 Gunslinging . | . . . . . Exploded 2 | . 2 2 . 2 Melee . | . . . . . Uniques/NPCs Destroyed . | . . . . . Combat | -11 -10 -10 -10 -9 -------- Run | Scr Mat Min Exi Min Damage Taken 965 | . 305 109 . 551 Core 255 | . 11 10 . 234 Absorbed by Shields . | . . . . . Core Remaining (%) 100 | 100 . . . . Volleys Fired 25 | . 17 4 . 4 Largest 2 | . 2 2 . 2 Hottest 90 | . 90 65 . 63 Shots Fired 46 | . 33 8 . 5 Gun 29 | . 29 . . . Cannon 6 | . 2 4 . . Launcher 11 | . 2 4 . 5 Special . | . . . . . Kinetic 6 | . 2 4 . . Thermal 14 | . 14 . . . Explosive 11 | . 2 4 . 5 Electromagnetic 15 | . 15 . . . Robot Hit Streak 15 | . 14 15 . 4 Robot Miss Streak 1 | . 1 1 . 1 Penetration Max . | . . . . . Secondary Targets . | . . . . . Shots Hit Robots 32 | . 27 1 . 4 Core Hits 32 | . 17 6 . 9 Critical Hits . | . . . . . Critical Kills . | . . . . . Critical Parts Destroyed . | . . . . . Melee Attacks . | . . . . . Impact . | . . . . . Slashing . | . . . . . Piercing . | . . . . . Sneak Attacks . | . . . . . Combat Hostiles . | . . . . . Follow-up Attacks . | . . . . . Damage Inflicted 931 | . 542 195 . 194 Guns 307 | . 307 . . . Cannons 18 | . 18 . . . Explosions 606 | . 217 195 . 194 Melee . | . . . . . Ramming . | . . . . . Kinetic 18 | . 18 . . . Thermal 161 | . 161 . . . Explosive 606 | . 217 195 . 194 Electromagnetic 146 | . 146 . . . Impact . | . . . . . Slashing . | . . . . . Piercing . | . . . . . Highest Corruption . | . . . . . Average Corruption . | . . . . . Corruption Purged . | . . . . . Overload Shots . | . . . . . Overflow Damage . | . . . . . Projectiles . | . . . . . Explosions . | . . . . . Melee . | . . . . . Knockbacks 1 | . 1 . . . Impact . | . . . . . Kinetic 1 | . 1 . . . Secondary . | . . . . . Self-Inflicted Damage 54 | . . 7 . 47 Shots 3 | . . 1 . 2 Rammed . | . . . . . Targets Rammed . | . . . . . Kicked . | . . . . . Crushed . | . . . . . Highest Temperature 330 | . 330 2 . . Average Temperature 118 | . 120 2 . . Received Heat Transfer 162 | . 144 18 . . Siege Activations . | . . . . . Robots Corrupted . | . . . . . Combat Hostiles . | . . . . . Parts Fried . | . . . . . Impact Corruptions . | . . . . . Robots Melted . | . . . . . Combat Hostiles . | . . . . . Parts Melted . | . . . . . Heat Transferred 481 | . 481 . . . Parts Sabotaged . | . . . . . Parts Stolen . | . . . . . Parts Stripped . | . . . . . Power Chain Reactions . | . . . . . Missiles Intercepted . | . . . . . Alert | -11 -10 -10 -10 -9 ------- Run | Scr Mat Min Exi Min Peak Influence 227 | . 227 173 . . Initial 88 | . . 88 . . Average 99 | . 133 165 . . Maximum Alert Level 1 | . 1 . . . Low Security (%) 84 | 100 69 100 . 100 Level 1 15 | . 30 . . . Level 2 . | . . . . . Level 3 . | . . . . . Level 4 . | . . . . . Level 5 . | . . . . . High Security . | . . . . . Max Security . | . . . . . Squads Dispatched 2 | . 2 . . . Investigation . | . . . . . Extermination . | . . . . . Reinforcement 2 | . 2 . . . Assault . | . . . . . Garrison . | . . . . . Intercept . | . . . . . Construction Impeded . | . . . . . Haulers Reinforced . | . . . . . Stealth | -11 -10 -10 -10 -9 --------- Run | Scr Mat Min Exi Min Distress Signals 1 | . 1 . . . Communications Jammed . | . . . . . Distress Signals . | . . . . . Times Spotted 20 | . 11 5 . 4 Peak Tracking Total 5 | . 5 3 . 5 Tactical Retreats 3 | . 2 . . 1 Traps | -11 -10 -10 -10 -9 ------- Run | Scr Mat Min Exi Min Traps Triggered 1 | . 1 . . . Indirectly . | . . . . . Trap Hack Attempts . | . . . . . Triggered . | . . . . . Disarmed . | . . . . . Reprogrammed . | . . . . . Reused . | . . . . . Traps Extracted . | . . . . . Installed . | . . . . . Triggered . | . . . . . Machines | -11 -10 -10 -10 -9 ---------- Run | Scr Mat Min Exi Min Machines Disabled 2 | . 1 1 . . Max in Single Turn 1 | . 1 1 . . Machines Sabotaged . | . . . . . Garrisons Compromised . | . . . . . Overloaded Fab Kills . | . . . . . Fab Network Shutdowns . | . . . . . Hacking | -11 -10 -10 -10 -9 --------- Run | Scr Mat Min Exi Min Machines Accessed 5 | . 1 . 4 . Terminals . | . . . . . Fabricators . | . . . . . Repair Stations . | . . . . . Recycling Units 1 | . 1 . . . Scanalyzers . | . . . . . Garrison Access . | . . . . . Total Hacks 50 | . 1 . 49 . Successful 50 | . 1 . 49 . Failed . | . . . . . Catastrophic . | . . . . . Database Lockouts . | . . . . . Manual . | . . . . . Terminals . | . . . . . Fabricators . | . . . . . Repair Stations . | . . . . . Recycling Units 1 | . 1 . . . Scanalyzers . | . . . . . Garrison Access . | . . . . . Terminal Hacks 49 | . . . 49 . Record 49 | . . . 49 . Fabricator Hacks . | . . . . . Repair Station Hacks . | . . . . . Recycling Unit Hacks 1 | . 1 . . . Retrieve Components 1 | . 1 . . . Scanalyzer . | . . . . . Garrison Access Hacks . | . . . . . Unauthorized Hacks . | . . . . . Terminals . | . . . . . Fabricators . | . . . . . Repair Stations . | . . . . . Recycling Units . | . . . . . Scanalyzers . | . . . . . Garrison Access . | . . . . . Data Cores Recovered . | . . . . . Used . | . . . . . Hacking Detections . | . . . . . Full Trace Events . | . . . . . Feedback Events . | . . . . . Feedback Blocked . | . . . . . Robot Schematics Acquired . | . . . . . Robots Built . | . . . . . Matter . | . . . . . Time . | . . . . . Total Robot Build Rating . | . . . . . Part Schematics Acquired . | . . . . . Parts Built . | . . . . . Matter . | . . . . . Time . | . . . . . Total Part Build Rating . | . . . . . Parts Repaired . | . . . . . Time . | . . . . . Parts Recycled . | . . . . . Recycled Matter . | . . . . . Retrieved Matter . | . . . . . Retrieved Components . | . . . . . Parts Scanalyzed . | . . . . . Part Schematics Acquired . | . . . . . Parts Damaged . | . . . . . Bothacking | -11 -10 -10 -10 -9 ------------ Run | Scr Mat Min Exi Min Used RIF Installer . | . . . . . Robots Hacked . | . . . . . Non-combat . | . . . . . Combat . | . . . . . Robot Hacks Applied . | . . . . . Relay Couplers Released . | . . . . . Robots Rewired . | . . . . . Allies Hacked . | . . . . . Hacks Repelled . | . . . . . Allies | -11 -10 -10 -10 -9 -------- Run | Scr Mat Min Exi Min Total Allies . | . . . . . Largest Group . | . . . . . Highest-Rated Group . | . . . . . Highest-Rated Ally . | . . . . . Total Orders . | . . . . . Ally Attacks . | . . . . . Total Damage . | . . . . . Kills . | . . . . . Allies Corrupted . | . . . . . Allies Melted . | . . . . . Intel | -11 -10 -10 -10 -9 ------- Run | Scr Mat Min Exi Min Robot Analysis Total . | . . . . . Derelict Logs Recovered 1 | . . . . 1 Drone Launches . | . . . . . Drone Recoveries . | . . . . . Exploration | -11 -10 -10 -10 -9 ------------- Run | Scr Mat Min Exi Min Turns Passed 1349 | 97 343 129 677 103 Spaces Moved 1020 | 75 208 95 563 79 Core 22 | 22 . . . . Treads . | . . . . . Legs 998 | 53 208 95 563 79 Wheels . | . . . . . Hover . | . . . . . Flight . | . . . . . Fastest Speed 50 | 50 120 120 120 120 Average Speed 119 | 117 120 120 120 120 Slowest Speed 150 | 150 150 120 120 120 Overloaded Moves . | . . . . . Propulsion Burnouts . | . . . . . Robots Hopped . | . . . . . Cave-ins Triggered . | . . . . . Exploration Rate (%) 36 | 6 29 18 91 38 Regions Visited 4 Branch Regions 3 Pre-discovered Areas 1 | . . . 1 . Known Exits Taken . | . . . . . Unknown Exits Taken 4 | 1 1 1 1 . Scrap Searched . | . . . . . Spaces Dug 11 | . . 11 . . Terrain Destroyed 79 | . 7 33 . 39 Melee . | . . . . . Projectile . | . . . . . AOE 79 | . 7 33 . 39 Terrain Rammed . | . . . . . Walls Destroyed . | . . . . . Machines Disabled . | . . . . . Actions | -11 -10 -10 -10 -9 --------- Run | Scr Mat Min Exi Min Total 1097 | 81 267 102 564 83 Wait 24 | . 24 . . . Move 1016 | 74 207 94 562 79 Hop . | . . . . . Pick Up 5 | 1 4 . . . Fast Attach 12 | 6 4 1 1 . Attach . | . . . . . Detach 1 | . 1 . . . Swap 6 | . 5 1 . . Drop 8 | . 5 2 1 . Fire 25 | . 17 4 . 4 Melee . | . . . . . Ram . | . . . . . Kick . | . . . . . Crush . | . . . . . Escape Stasis . | . . . . . Rewire . | . . . . . Trap . | . . . . . Miscellaneous . | . . . . . Route ------- -11/Scrapyard -10/Materials -10/Mines (discovered 2 exits: [*Mat] / *Exi) -10/Exiles -9/Mines History --------- Turn | Location | Event 20 | -11/Scrapyard | Discovered new exit (range 16) 98 | -11/Scrapyard | Entered Materials 355 | -10/Materials | Discovered new exit (range 9) 441 | -10/Materials | Entered Mines 441 | -10/Mines | Discovered new exit (range 12) 474 | -10/Mines | Joined a pair of Derelicts in attacking an 0b10 outpost 512 | -10/Mines | Received a Rocket Launcher from a helpful Derelict 538 | -10/Mines | Build established: Scavenger-Mutant 564 | -10/Mines | Deemed a non-threat by the Exiles lab entrance 565 | -10/Mines | Discovered new exit (range 5) 570 | -10/Mines | Entered Exiles 605 | -10/Exiles | Met 8R-AWN 625 | -10/Exiles | Met EX-HEX 688 | -10/Exiles | Met EX-DEC 728 | -10/Exiles | Learned location of Zion (-7) 770 | -10/Exiles | Discovered new exit (range 14) 873 | -10/Exiles | Visited The Gauntlet 1045 | -10/Exiles | Met EX-BIN 1247 | -10/Exiles | Entered Mines 1255 | -9/Mines | Learned Materials security intel 1311 | -9/Mines | Assembled infested the area 1338 | -9/Mines | Core integrity fell below 50% 1350 | -9/Mines | Destroyed by D-53 Grenadier with Mini Grenade Launcher Last Messages --------------- 01274_ K-01 Serf collects debris. 01311_ ALERT: Infestation in the mines, dispatching Demolisher response squad. 01315_ R-06 Scavenger destroyed. 01317_ as-19716 sneak attacks. 01320_ R-06 Scavenger destroyed. 01321_ as-19716 destroyed. 01321_ as-76097 destroyed. 01327_ C-30 ARC bursts open, deploying its payload. 01327_ D-53 Grenadier unfolds itself. 01328_ The unstable cave ceiling collapses. 01330_ Rocket Launcher destroyed. 01330_ Lgt. Nuclear Core destroyed. 01337_ Grenade Launcher destroyed. 01337_ Aluminum Leg destroyed. 01339_ The unstable cave ceiling collapses. 01340_ K-01 Serf collects debris. 01341_ The unstable cave ceiling collapses. 01341_ K-01 Serf destroyed. 01342_ The unstable cave ceiling collapses. Map ----- +----------------------------------------------------+ | ???????????# ???????????????????????????? | | ??????????# ???????????????????????????? | | ?????????## ???????????????????????????? | | ?????????# % ???????????????????????????? | | ?????????? ???????????????????????????? | | ?????????? #??????????????????????????? | | ??????????? #??????????????????????????? | | ???????????? ##?????????????????????????? | | ????????????# ###???????????????????????? | | ???????????## ##??????????????????????? | | ???????##### #??????????????????????? | | ????#### #??????????????????????? | | ????? #??????????????????????? | | ???????????# # # #??????????????????????? | | ???????????## # ###????????????????????? | | ???????????## ##???????????????????? | | ????????????# #???????????????????? | | ????????????# # ##??????????????????? | | ????????????## # #??????????????????? | | ????????????# #? #??????????????????? | | ????????????# d # ### ##?????????????????? | | ?????????????# d ## #?????????????????? | | ?????????????# ##????????????????? | | ?????????????## ###??????????????? | | ?????????????# # ##???###??#????? | | ?????????? # # ### @ ##?# ## #????? | | ???????# ## # ## #????? | | ???????## ?###### #### #????? | | ????????# ???????#????# #????? | | ????????# ???????????## ##????? | | ????????# ???????# ### ##?????? | | ????????# #???????# ####??????? | | ????????# ?#??????# ###?????????? | | ???????? ? ??# ?????## #### ##???????????? | | ?????????????# ??######???## ##????????????? | | ?????????????# ### ##????## #?????????????? | | ?????????????? #???## #?????????????? | | ???????????????? #???# ##????????????? | | ????????????????## #??## ## ###?????? | | ????????????????# #### #????? | | ????????????????# #???? | | ???????????????## #???? | | ???????????????# #???? | | ?????????####### ### ##???? | | ?????????# ##?? ####????? | | ?????????# ##???? #???????? | | ?????????# ## ## #####?????? ???????? | | ?????????????# ### #???????????#??????? | | ?????????????# #?## #?????????????????? | | ?????????????# #??## #???????????????? | +----------------------------------------------------+ Best States ------------- Heat Dissipation 35 Energy Generation 14 Energy Capacity 250 Matter Stores 300 Matter Capacity 300 Sight Range 16 Terrain Scan Density 10 Evasion (%) 40 Item Schematics ----------------- None Robot Schematics ------------------ None Fabricated ------------ Nothing Alien Tech Used ----------------- None Achievements -------------- Librarian Tourist Challenges ------------ None Game ------ Seed HeartBehemothLog Manual? 0 Play Time 00:19:24 Cumulative 5.1 hours Start 2020.11.02 @ 10:37:03 End 2020.11.02 @ 10:55:28 Sessions 1 Manual Loads 0 Difficulty Rogue Special Mode None Game No. 10 Rogue 10 Adventurer 0 Explorer 0 Win Type - Total 0 Types 0/0/0/0/0/0/0/0/0 Lore% 11 Gallery% 13 Achievement% 9 Wizard Run 0 Options --------- ASCII 0 Keyboard 1 Movement Vi Keybinds 0 Fullscreen 1 Font 24/Smallcaps Map View 76x50 Tactical HUD 1 Map Filters NONE Filters NONE Steam 1 RUN: c30cc2c5-005e-42e5-8112-5d9178db1c7c